Workbook

Sheet Selected Data
A1: ='Authorized Rev Req'!A1 -> SoCalGas Revenue Requirement List
A2: ='Authorized Rev Req'!A2 -> Annual Period 2023
A3: ='Authorized Rev Req'!A3 -> Reporting Date: Quarter Ended September 30
A4: Summary of Selected Data
Q5: Revenue
Q6: Requirement
Q7: $000
A8: 1 | B8: Current total system-level revenue requirement that is used for defining the reporting threshold: | Q8: ='Authorized Rev Req'!F108 -> 7898617.276
B9: A | C9: One-percent reporting threshold | Q9: =Q8*0.01 -> 78986.17276
A11: 2 | B11: List of currently open proceedings that exceed the threshold for use of the affordability metrics (proceedings shaded gray filed prior to D.22-08-023):
B12: A | C12: ='Incremental Rev Req'!B103 -> A.22-05-015 | D12: ='Incremental Rev Req'!A103 -> 2024 GRC Application | Q12: ='Incremental Rev Req'!D103 -> 5344496.585
B13: B | C13: ='Incremental Rev Req'!B107 -> AL 6060 | D13: ='Incremental Rev Req'!A108 -> TIMPBA | Q13: ='Incremental Rev Req'!D107+'Incremental Rev Req'!D108 -> 234718.5282
A16: 3 | B16: List of currently open proceedings for which affordability metrics have been filed:
B17: A | C17: ='Incremental Rev Req'!B103 -> A.22-05-015 | D17: ='Incremental Rev Req'!A103 -> 2024 GRC Application | Q17: =Q12 -> 5344496.585
A20: 4 | B20: List of currently open proceedings that do not exceed the threshold for use of the affordability metrics (proceedings shaded gray filed prior to D.22-08-023):
B21: A | C21: ='Incremental Rev Req'!B104 -> A.22-05-015 | D21: ='Incremental Rev Req'!A104 -> Pipeline Safety Enhancement Plan (PSEP) GRC - Local Transmission | Q21: ='Incremental Rev Req'!D104 -> -5487.02332
B22: B | C22: ='Incremental Rev Req'!B105 -> A.22-05-015 | D22: ='Incremental Rev Req'!A105 -> Pipeline Safety Enhancement Plan (PSEP) GRC -Distribution | Q22: ='Incremental Rev Req'!D105 -> 63454.58
B23: C | C23: ='Incremental Rev Req'!B106 -> A.22-05-015 | D23: ='Incremental Rev Req'!A106 -> NonCore Backbone Transmission | Q23: ='Incremental Rev Req'!D106 -> 22240.27738
B24: D | C24: ='Incremental Rev Req'!B109 -> A.22-09-006 | D24: ='Incremental Rev Req'!A109 -> Hydrogen Blending | Q24: ='Incremental Rev Req'!D109 -> 14979.07897
B25: E | C25: ='Incremental Rev Req'!B112 -> AL 5950 | D25: ='Incremental Rev Req'!A112 -> Natural Gas Leak Abatement | Q25: ='Incremental Rev Req'!D112 -> 18069.45287
B26: F | C26: ='Incremental Rev Req'!B115 -> A.22-03-008 | D26: ='Incremental Rev Req'!A115 -> Energy Efficiency | Q26: ='Incremental Rev Req'!D115 -> 60415.31974
B27: G | C27: ='Incremental Rev Req'!B116 -> A.23.01-004 | D27: ='Incremental Rev Req'!A116 -> Demand Response | Q27: ='Incremental Rev Req'!D116 -> 12500
A29: 5 | B29: Total system-level revenue requirement if all pending revenue were granted in full:
B30: A | C30: YE 2023 | Q30: ='Incremental Rev Req'!O121 -> 7903455.415
B31: B | C31: YE 2024 | Q31: ='Incremental Rev Req'!P121 -> 8770287.929
B32: C | C32: YE 2025 | Q32: ='Incremental Rev Req'!Q121 -> 8373713.926
B33: D | C33: YE 2026 | Q33: ='Incremental Rev Req'!R121 -> 8637449.093
B34: E | C34: YE 2027 | Q34: ='Incremental Rev Req'!S121 -> 6114353.596
A36: 6 | B36: Bundled residential average rate (RAR) if all pending revenue were granted in full (from Cost and Rate Tracker (CRT) as submitted by utility): | R36: cents/therm
B37: A | C37: YE 2023 | R37: 215.919934
B38: B | C38: YE 2024 | R38: 247.8376212
B39: C | C39: YE 2025 | R39: 249.858551
B40: D | C40: YE 2026 | R40: 258.287333
B41: E | C41: YE 2027 | R41: 184.0751618
A42: 7 | B42: Bundled residential average monthly bill corresponding to RAR above for typical customer in climate zone 1 using a Typical 5-year average usage(from CRT as submitted by utility): | S42: Non-CARE | T42: CARE
B44: A | C44: YE 2023 | S44: 81.19330718 | T44: 47.1126229
B45: B | C45: YE 2024 | S45: 93.26797662 | T45: 53.94173012
B46: C | C46: YE 2025 | S46: 94.03250755 | T46: 54.37412818
B47: D | C47: YE 2026 | S47: 97.22117081 | T47: 56.17755008
B48: E | C48: YE 2027 | S48: 69.14622192 | T48: 40.29911656

Sheet Authorized Rev Req
A1: SoCalGas Revenue Requirement List
A2: Annual Period 2023
A3: Reporting Date: Quarter Ended September 30
B5: Revenue Requirement Date: | C5: 2022-01-01 | D5: 2023-01-01 | E5: 2023-03-01 | F5: 2023-08-01
B6: Advice Letter: | C6: AL 5915 | D6: AL 6071 | E6: AL 6088 | F6: AL 6168-G
A7: Filing Description | B7: Authority for Revenue Requirement as of 3/1/2023 | C7: Authorized Revenue Requirement ($000) | D7: Authorized Revenue Requirement ($000) | E7: Authorized Revenue Requirement ($000) | F7: Authorized Revenue Requirement ($000) | G7: Revenue Recovery Mechanism | H7: Balancing Account
A8: Safety Affordability Reliability Proceedings
A9: Total Allocated Base Margin | B9: D.19-09-051 | C9: 2797438.81 | D9: 2813333.282 | E9: 2813333.282 | F9: 2813333.282 | G9: Allocated Base Margin | H9: N
A10: Pipeline Safety Enhancement Plan (PSEP) GRC - Local Transmission (subtracted from Base Margin and allocated here) | B10: D.19-09-051 | C10: 20025.2391 | D10: 20972.1516 | E10: 20972.1516 | F10: 20972.1516 | G10: Local Transmission | H10: N
A11: Pipeline Safety Enhancement Plan (PSEP) GRC -Distribution (subtracted from Base Margin and allocated here) | B11: D.19-09-051 | C11: 28629.01 | D11: 29982.76 | E11: 29982.76 | F11: 29982.76 | G11: Distribution | H11: N
A12: Company Use Gas: Other | B12: D.20-02-045 AL 6071, AL 6045 | C12: 1792.692921 | D12: 2442.782407 | E12: 2442.782407 | F12: 2442.782407 | G12: ECPT | H12: N
A13: Company Use Gas: Storage Load Balancing | B13: D.20-02-045 AL 6071, AL 6045 | C13: 1739.982378 | D13: 2371.288817 | E13: 2371.288817 | F13: 2371.288817 | G13: ECPT | H13: N
A14: Exchange Revenues & Interutility Transactions | B14: D.20-02-045 AL 6071, AL 6045 | C14: 342.77791 | D14: 342.77791 | E14: 342.77791 | F14: 342.77791 | G14: ECPT | H14: N
A15: Unaccounted For (UAF) Gas | B15: D.20-02-045 AL 6071, AL 6045 | C15: 43865.64079 | D15: 59771.78668 | E15: 59771.78668 | F15: 59771.78668 | G15: 47% Res (LUAF, Other) | H15: N
A16: Well Incidents & Surface Leaks | B16: D.20-02-045 AL 6071, AL 6045 | C16: 226.3891543 | D16: 308.4843465 | E16: 308.4843465 | F16: 308.4843465 | G16: ECPT | H16: N
A17: SCG PSEP - 2017 Forecast Application RevReq Capital Cost - Local Transmission | B17: D.20-02-045 AL 6071, AL 6045 | C17: 381.0924644 | D17: 363.8434006 | E17: 363.8434006 | F17: 363.8434006 | G17: Local Transmission | H17: N
A18: SCG PSEP - 2017 Forecast Application RevReq Capital Cost - Distribution | B18: D.20-02-045 AL 6071, AL 6045 | C18: 24839.85663 | D18: 24959.79958 | E18: 24959.79958 | F18: 24959.79958 | G18: Distribution | H18: N
A19: AMI Balancing Account (AMIBA) | B19: D.20-02-045 AL 6071, AL 6045 | C19: -77756.9011 | D19: -323.9718593 | E19: -323.9718593 | F19: -323.9718593 | G19: EPAM | H19: Y
A20: Residential Uncollectible Balancing Account (RUBA) | B20: D.20-02-045 AL 6071, AL 6045 | C20: 16080.82923 | D20: 44745.19835 | E20: 44745.19835 | F20: 44745.19835 | G20: ECPT | H20: Y
A21: Affiliate Transfer Fee Account (ATFA) | B21: D.20-02-045 AL 6071, AL 6045 | C21: -56.8521172 | D21: -106.5216742 | E21: -106.5216742 | F21: -106.5216742 | G21: EPAM | H21: Y
A22: Biomethane Cost Incentive Pgm Balancing Acct (BCIPBA) | B22: D.20-02-045 AL 6071, AL 6045 | C22: 10172.0832 | D22: 0 | E22: 0 | F22: 0 | G22: ECPT | H22: Y
A23: Core Fixed Cost Account - Non NGV (CFCA) | B23: D.20-02-045, AL 6071, AL 6045, AL 6088 | C23: -28133.81894 | D23: 121885.4366 | E23: -12481.01707 | F23: -12481.01707 | G23: CFCA | H23: Y
A24: Core Fixed Cost Account - NGV (CFCA) | B24: D.20-02-045, AL 6071, AL 6045, AL 6088 | C24: 9826.724141 | D24: -1151.989741 | E24: -1401.302084 | F24: -1401.302084 | G24: Non-Residential | H24: Y
A25: Core Fixed Cost Account - C&I Shortfall (CFCA) | B25: D.20-02-045, AL 6071, AL 6045, AL 6088 | C25: 28765.69276 | D25: 0 | E25: 0 | F25: 0 | G25: Non-Residential | H25: Y
A26: Economic Practicality Shortfall Memorandum Account (EPSMA) | B26: D.20-02-045 AL 6071, AL 6045 | C26: 395.853484 | D26: 434.2273838 | E26: 434.2273838 | F26: 434.2273838 | G26: Non-Residential | H26: Y
A27: Enhanced Oil Recovery Account (EORA) | B27: D.20-02-045 AL 6071, AL 6045 | C27: 2530.55974 | D27: -7124.256786 | E27: -7124.256786 | F27: -7124.256786 | G27: EPAM | H27: Y
A28: Hazardous Substance Cost-Recovery Account (HSCRA) | B28: D.20-02-045 AL 6071, AL 6045 | C28: 284.26279 | D28: 441.0656654 | E28: 441.0656654 | F28: 441.0656654 | G28: ECPT | H28: Y
A29: Intervenor Award Memorandum Account (IAMA) | B29: D.20-02-045 AL 6071, AL 6045 | C29: 731.580665 | D29: 832.9371787 | E29: 832.9371787 | F29: 832.9371787 | G29: ECPT | H29: Y
A30: Master Meter Balancing Account (MMBA) | B30: D.20-02-045 AL 6071, AL 6045 | C30: 17468.47031 | D30: 24824.50463 | E30: 24824.50463 | F30: 24824.50463 | G30: EPAM | H30: Y
A31: Noncore Fixed Cost Account (NFCA) Margin | B31: D.20-02-045 AL 6071, AL 6045 | C31: 6370.180978 | D31: 12427.60401 | E31: 12427.60401 | F31: 12427.60401 | G31: Non-Residential | H31: Y
A32: Noncore Fixed Cost Account (NFCA) Nonmargin | B32: D.20-02-045 AL 6071, AL 6045 | C32: -3275.185198 | D32: 959.6319265 | E32: 959.6319265 | F32: 959.6319265 | G32: Non-Residential | H32: Y
A33: Integrated Transmission Balancing Account (ITBA) Margin | B33: D.20-02-045 AL 6071, AL 6045 | C33: 176.0981414 | D33: 5083.885059 | E33: 5083.885059 | F33: 5083.885059 | G33: ECPT | H33: Y
A34: Compressor Station Fuel and Power Balancing Account (CFPBA) | B34: D.20-02-045 AL 6071, AL 6045 | C34: -1423.035883 | D34: 3459.772548 | E34: 3459.772548 | F34: 3459.772548 | G34: ECPT | H34: Y
A35: Compression Services Balancing Account (CSBA) | B35: D.20-02-045 AL 6071, AL 6045 | C35: -68.36948884 | D35: -73.63685293 | E35: -73.63685293 | F35: -73.63685293 | G35: Non-Residential | H35: Y
A36: Company-Use Fuel for Load Balancing Account (CUFLBA) | B36: D.20-02-045 AL 6071, AL 6045 | C36: -1168.448441 | D36: 5918.687245 | E36: 5918.687245 | F36: 5918.687245 | G36: ECPT | H36: Y
A37: Noncore Storage Balancing Account (NSBA) | B37: D.20-02-045 AL 6071, AL 6045 | C37: 122.0512176 | D37: 93.94677741 | E37: 93.94677741 | F37: 93.94677741 | G37: ECPT | H37: Y
A38: Pension Balancing Account (PBA) | B38: D.20-02-045 AL 6071, AL 6045 | C38: 11312.64409 | D38: 9235.968926 | E38: 9235.968926 | F38: 9235.968926 | G38: EPAM | H38: Y
A39: PBOP Balancing Account (PBOPBA) | B39: D.20-02-045 AL 6071, AL 6045 | C39: -4328.422797 | D39: -4765.790274 | E39: -4765.790274 | F39: -4765.790274 | G39: EPAM | H39: Y
A40: Safety Enhancement Capital Cost Balancing Account (SECCBA) - Local Transmission | B40: D.20-02-045 AL 6071, AL 6045 | C40: 22874.17654 | D40: 24483.53553 | E40: 24483.53553 | F40: 24483.53553 | G40: Local Transmission | H40: Y
A41: Safety Enhancement Capital Cost Balancing Account (SECCBA) - Distribution | B41: D.20-02-045 AL 6071, AL 6045 | C41: 72521.18682 | D41: 74787.02382 | E41: 74787.02382 | F41: 74787.02382 | G41: Distribution | H41: Y
A42: Safety Enhancement Expense Balancing Account (SEEBA) - Local Transmission | B42: D.20-02-045 AL 6071, AL 6045 | C42: 572.0979832 | D42: -674.0780882 | E42: -674.0780882 | F42: -674.0780882 | G42: Local Transmission | H42: Y
A43: Safety Enhancement Expense Balancing Account (SEEBA) - Distribution | B43: D.20-02-045 AL 6071, AL 6045 | C43: 1611.907472 | D43: 2206.086744 | E43: 2206.086744 | F43: 2206.086744 | G43: Distribution | H43: Y
A44: Research Royalty Memorandum Account (RRMA) | B44: D.20-02-045 AL 6071, AL 6045 | C44: -160.8244502 | D44: -247.9508232 | E44: -247.9508232 | F44: -247.9508232 | G44: EPAM | H44: Y
A45: Self-Generation Program Memorandum Account (SGPMA) | B45: D.20-02-045 AL 6071, AL 6045 | C45: 16267.79819 | D45: 16265.02543 | E45: 16265.02543 | F45: 16265.02543 | G45: SGIP | H45: Y
A46: System Operator Gas Account (SOGA) | B46: D.20-02-045 AL 6071, AL 6045 | C46: -57.47472488 | D46: -54.79102466 | E46: -54.79102466 | F46: -54.79102466 | G46: ECPT | H46: Y
A47: Rewards & Penalties Balancing Account (RPBA) | B47: D.20-02-045 AL 6071, AL 6045 | C47: -266.7671576 | D47: -288.8720611 | E47: -288.8720611 | F47: -288.8720611 | G47: EPAM | H47: Y
A48: Liability Insurance Premium Balancing Account (LIPBA) | B48: D.20-02-045 AL 6071, AL 6045 | C48: 14313.74818 | D48: 23349.85594 | E48: 23349.85594 | F48: 23349.85594 | G48: EPAM | H48: Y
A49: NonCore Backbone Transmission | B49: D.20-02-045 AL 6071, AL 6045 | C49: 205899.099 | D49: 307036.3771 | E49: 307036.3771 | F49: 307036.3771 | G49: Backbone Transmission | H49: N
A50: Storage Integrity Management Program Balancing Account (SIMPBA) Balance | B50: D.22-07-016, AL 6023 | C50: 0 | D50: 35607.36669 | E50: 35607.36669 | F50: 35607.36669 | G50: EPAM | H50: Y
A51: On-Bill Financing Balancing Account (OBFBA) | B51: AL 5853-A | C51: 0 | D51: 4574.363334 | E51: 4574.363334 | F51: 4574.363334 | G51: EPAM | H51: Y
A52: System Reliability Memorandum Account (SRMA) | B52: AL 6045 | C52: 0 | D52: 15184.32229 | E52: 15184.32229 | F52: 15184.32229 | G52: ECPT | H52: Y
A53: Distributed Energy Resources Svcs Bal Account (DERSBA) | B53: AL 6045 | C53: 0 | D53: -61.47842668 | E53: -61.47842668 | F53: -61.47842668 | G53: EPAM | H53: Y
A55: Subtotal Safety Affordability Reliability | C55: =SUM(C9:C53) -> 3240882.436 | D55: =SUM(D9:D53) -> 3673812.442 | E55: =SUM(E9:E53) -> 3539196.676 | F55: =SUM(F9:F53) -> 3539196.676
A58: Public Policy Proceedings
A59: AB32 Fees (subtracted from base margin and allocated here) | B59: D.19-09-051 | C59: 5107.071894 | D59: 5106.20142 | E59: 5106.20142 | F59: 5106.20142 | G59: ECPT adjusted | H59: N
A60: Green House Gas Balancing Account (GHGBA) - Company Gas Compressor Revenue Requirement | B60: D.20-02-045, AL 6071, AL 6045 | C60: 2676.455882 | D60: 2388.575096 | E60: 2388.575096 | F60: 2388.575096 | G60: ECPT | H60: N
A61: Green House Gas Balancing Account (GHGBA) - End User Revenue Requirement | B61: D.20-02-045, AL 6071, AL 6045 | C61: 421911.6559 | D61: 451660.1517 | E61: 451660.1517 | F61: 451660.1517 | G61: GHG End User | H61: N
A62: Green House Gas Balancing Account (GHGBA) - LUAF Revenue Requirement | B62: D.20-02-045, AL 6071, AL 6045 | C62: 11523.70083 | D62: 11338.59513 | E62: 11338.59513 | F62: 11338.59513 | G62: 47% Res (LUAF, Other) | H62: N
A63: Green House Gas Balancing Account (GHGBA) - Company Gas Compressor | B63: D.20-02-045, AL 6071, AL 6045 | C63: 110.1068734 | D63: -783.1516359 | E63: -783.1516359 | F63: -783.1516359 | G63: ECPT | H63: Y
A64: Green House Gas Balancing Account (GHGBA) - End User | B64: D.20-02-045, AL 6071, AL 6045 | C64: 24082.11232 | D64: -22703.37309 | E64: -22703.37309 | F64: -22703.37309 | G64: GHG End User | H64: Y
A65: Green House Gas Balancing Account (GHGBA) - LUAF | B65: D.20-02-045, AL 6071, AL 6045 | C65: 96.16147584 | D65: 3057.496701 | E65: 3057.496701 | F65: 3057.496701 | G65: 47% Res (LUAF, Other) | H65: Y
A66: New Envirnomental Regulatory Balancing Account (NERBA) - Admin Fees Subaccount | B66: D.20-02-045, AL 6071, AL 6045 | C66: 3566.9059 | D66: 5564.392269 | E66: 5564.392269 | F66: 5564.392269 | G66: ECPT adjusted | H66: Y
A67: New Environmental Regulatory Balancing Account (NERBA) - Leak Detection & Repair (LDAR) sub-account | B67: D.20-02-045, AL 6071, AL 6045 | C67: 1979.707886 | D67: 6090.186376 | E67: 6090.186376 | F67: 6090.186376 | G67: EPAM | H67: Y
A68: New Envirnomental Regulatory Balancing Account (NERBA) -Natural Gas Leak Abatement Program | B68: D.20-02-045, AL 6071, AL 6045 | C68: -2147.512017 | D68: 0 | E68: 0 | F68: 0 | G68: EPAM | H68: Y
A69: TLS Adjustment | B69: D.20-02-045, AL 6071, AL 6045 | C69: -6644.931817 | D69: 10390.21603 | E69: 10421.05359 | F69: 10394.54613 | G69: Non-Residential | H69: N
A70: Natural Gas Leak Abatement Program Revenue Requirement | B70: AL 5915G, AL 6071 | C70: 86446.46472 | D70: 86431.16512 | E70: 86431.16512 | F70: 107531.4643 | G70: EPAM | H70: N
A71: Biogas Conditioning/Upgrading Svcs Bal Acct (BCSBA) | B71: D.20-02-045, AL 6071, AL 6045 | C71: -48.66967436 | D71: 0 | E71: 0 | F71: 0 | G71: EPAM | H71: Y
A72: Diary Biomethane Project Balancing Account (DBPBA) | B72: D.20-02-045, AL 6071, AL 6045 | C72: 45457.03256 | D72: 34573.34405 | E72: 34573.34405 | F72: 34573.34405 | G72: EPAM | H72: Y
A73: Diary Biomethane Project Memorandum Account (DBPMA) | B73: D.20-02-045, AL 6071, AL 6045 | C73: =0 -> 0 | D73: 8114.656258 | E73: 8114.656258 | F73: 8114.656258 | G73: EPAM | H73: Y
A74: California Solar Iniative Thermal Memorandum Account (CSITPMA) | B74: D.20-02-045, AL 6071, AL 6045 | C74: 1411.38197 | D74: 1113.860455 | E74: 1113.860455 | F74: 1113.860455 | G74: ECPT adjusted | H74: Y
A82: PPPS Programs
A83: California Alternate Rates for Energy (CARE) | B83: D.21-06-015, AL 6052 | C83: 229388.1321 | D83: 199514.8915 | E83: 199514.8915 | F83: 199514.8915 | G83: Public Purpose Programs | H83: N
A84: Energy Efficiency | B84: AL 6052 | C84: 107144.935 | D84: 166906.526 | E84: 166906.526 | F84: 166906.526 | G84: Public Purpose Programs | H84: N
A85: RD&D | B85: AL 6052 | C85: 12406.90965 | D85: 12264.872 | E85: 12264.872 | F85: 12264.872 | G85: Public Purpose Programs | H85: N
A86: Bureau Of Equalization BOE | B86: AL 6052 | C86: 547.65497 | D86: 520.254 | E86: 520.254 | F86: 520.254 | G86: Public Purpose Programs | H86: N
A87: Energy Savings Assistance | B87: D.21-06-015, AL 6052 | C87: =0 -> 0 | D87: 80174.20485 | E87: 80174.20485 | F87: 80174.20485 | G87: Public Purpose Programs | H87: N
A88: SJVDGPMA | B88: AL 6052 | C88: =0 -> 0 | D88: 806.165 | E88: 806.165 | F88: 806.165 | G88: Public Purpose Programs | H88: N
A95: Subtotal Public Policy | C95: =SUM(C59:C94) -> 945015.2765 | D95: =SUM(D59:D94) -> 1062529.229 | E95: =SUM(E59:E94) -> 1062560.067 | F95: =SUM(F59:F94) -> 1083633.858
A97: EOR | B97: D.20-02-045, AL 6045 | C97: -19696.02666 | D97: -25124.8966 | E97: -25124.8966 | F97: -25233.57266 | G97: EPAM
A99: Procurement
A100: Procurement | B100: D.98-07-068 | C100: 2584342.156 | D100: 3301020.314 | E100: =D100 -> 3301020.314 | F100: =E100 -> 3301020.314 | G100: Core Procurement
A106: Subtotal Procurement | C106: =SUM(C100:C105) -> 2584342.156 | D106: =SUM(D100:D105) -> 3301020.314 | E106: =SUM(E100:E105) -> 3301020.314 | F106: =SUM(F100:F105) -> 3301020.314
A108: Total Authorized Revenue | C108: =C55+C95+C106+C97 -> 6750543.841 | D108: =D55+D95+D106+D97 -> 8012237.088 | E108: =E55+E95+E106+E97 -> 7877652.16 | F108: =F55+F95+F106+F97 -> 7898617.276

Sheet Incremental Rev Req
A1: SoCalGas Revenue Requirement List
A2: ='Authorized Rev Req'!A2 -> Annual Period 2023
A3: ='Authorized Rev Req'!A3 -> Reporting Date: Quarter Ended September 30
A5: Current Revenue Requirement ($000): | B5: ='Authorized Rev Req'!F108 -> 7898617.276
A6: Current Revenue Requirement Effective: | B6: ='Authorized Rev Req'!F5 -> 2023-08-01
A7: Approved Application(s), Implemented Since Jan 1 or To Be Implemented | N7: Authorized
A8: Filing Description | B8: Proceeding | C8: Authority for Revenue Requirement | D8: Authorized Revenue Requirement with FF&U ($000) | E8: Revenue Recovery Mechanism | F8: Authorized Revenue Requirement with FF&U ($000) - Breakout by Year | K8: Existing or New Item (if existing, use delta from prior for rate impact) | O8: 2023 | P8: 2024 | Q8: 2025 | R8: 2026 | S8: 2027
A9: Safety Affordability Reliability Proceedings | D9: =B6 -> 2023-08-01 | F9: 2023 | G9: 2024 | H9: 2025 | I9: 2026 | J9: 2027 | N9: Core Procurement | O9: 3301020.314 | P9: 3301020.314 | Q9: 3301020.314 | R9: 3301020.314 | S9: 3301020.314
A10: ='Authorized Rev Req'!A9 -> Total Allocated Base Margin | C10: ='Authorized Rev Req'!B9 -> D.19-09-051 | D10: =F10 -> 2813333.282 | E10: ='Authorized Rev Req'!G9 -> Allocated Base Margin | F10: ='Authorized Rev Req'!F9 -> 2813333.282 | G10: =F10 -> 2813333.282 | H10: =G10 -> 2813333.282 | I10: =H10 -> 2813333.282 | J10: =I10 -> 2813333.282 | K10: Existing | N10: Allocated Base Margin | O10: 2813333.282 | P10: 2813333.282 | Q10: 2813333.282 | R10: 2813333.282 | S10: 2813333.282
A11: ='Authorized Rev Req'!A10 -> Pipeline Safety Enhancement Plan (PSEP) GRC - Local Transmission (subtracted from Base Margin and allocated here) | C11: ='Authorized Rev Req'!B10 -> D.19-09-051 | D11: 20972.1516 | E11: ='Authorized Rev Req'!G10 -> Local Transmission | F11: ='Authorized Rev Req'!F10 -> 20972.1516 | G11: 21205 | H11: =0 -> 0 | I11: =0 -> 0 | J11: =0 -> 0 | K11: Existing | N11: Distribution | O11: 131935.6701 | P11: 30316 | Q11: 0 | R11: 0 | S11: 0
A12: ='Authorized Rev Req'!A11 -> Pipeline Safety Enhancement Plan (PSEP) GRC -Distribution (subtracted from Base Margin and allocated here) | C12: ='Authorized Rev Req'!B11 -> D.19-09-051 | D12: 29982.76 | E12: ='Authorized Rev Req'!G11 -> Distribution | F12: ='Authorized Rev Req'!F11 -> 29982.76 | G12: 30316 | H12: =0 -> 0 | I12: =0 -> 0 | J12: =0 -> 0 | K12: Existing | N12: ECPT adjusted | O12: 11784.45414 | P12: 0 | Q12: 0 | R12: 0 | S12: 0
A13: ='Authorized Rev Req'!A12 -> Company Use Gas: Other | C13: ='Authorized Rev Req'!B12 -> D.20-02-045 AL 6071, AL 6045 | D13: 2442.782407 | E13: ='Authorized Rev Req'!G12 -> ECPT | F13: ='Authorized Rev Req'!F12 -> 2442.782407 | G13: 0 | H13: =0 -> 0 | I13: =0 -> 0 | J13: =0 -> 0 | K13: Existing | N13: Local Transmission | O13: 45145.45244 | P13: 21205 | Q13: 0 | R13: 0 | S13: 0
A14: ='Authorized Rev Req'!A13 -> Company Use Gas: Storage Load Balancing | C14: ='Authorized Rev Req'!B13 -> D.20-02-045 AL 6071, AL 6045 | D14: 2371.288817 | E14: ='Authorized Rev Req'!G13 -> ECPT | F14: ='Authorized Rev Req'!F13 -> 2371.288817 | G14: 0 | H14: =0 -> 0 | I14: =0 -> 0 | J14: =0 -> 0 | K14: Existing | N14: SGIP | O14: 16265.02543 | P14: 0 | Q14: 0 | R14: 0 | S14: 0
A15: ='Authorized Rev Req'!A14 -> Exchange Revenues & Interutility Transactions | C15: ='Authorized Rev Req'!B14 -> D.20-02-045 AL 6071, AL 6045 | D15: 342.77791 | E15: ='Authorized Rev Req'!G14 -> ECPT | F15: ='Authorized Rev Req'!F14 -> 342.77791 | G15: 0 | H15: =0 -> 0 | I15: =0 -> 0 | J15: =0 -> 0 | K15: Existing | N15: GHG End User | O15: 428956.7786 | P15: 0 | Q15: 0 | R15: 0 | S15: 0
A16: ='Authorized Rev Req'!A15 -> Unaccounted For (UAF) Gas | C16: ='Authorized Rev Req'!B15 -> D.20-02-045 AL 6071, AL 6045 | D16: 59771.78668 | E16: ='Authorized Rev Req'!G15 -> 47% Res (LUAF, Other) | F16: ='Authorized Rev Req'!F15 -> 59771.78668 | G16: 0 | H16: =0 -> 0 | I16: =0 -> 0 | J16: =0 -> 0 | K16: Existing | N16: Public Purpose Programs | O16: 460186.9134 | P16: 407532.2604 | Q16: 409108.9974 | R16: 410172.3386 | S16: 0
A17: ='Authorized Rev Req'!A16 -> Well Incidents & Surface Leaks | C17: ='Authorized Rev Req'!B16 -> D.20-02-045 AL 6071, AL 6045 | D17: 308.4843465 | E17: ='Authorized Rev Req'!G16 -> ECPT | F17: ='Authorized Rev Req'!F16 -> 308.4843465 | G17: 0 | H17: =0 -> 0 | I17: =0 -> 0 | J17: =0 -> 0 | K17: Existing | N17: Backbone Transmission | O17: 307036.3771 | P17: 209446 | Q17: 0 | R17: 0 | S17: 0
A18: ='Authorized Rev Req'!A17 -> SCG PSEP - 2017 Forecast Application RevReq Capital Cost - Local Transmission | C18: ='Authorized Rev Req'!B17 -> D.20-02-045 AL 6071, AL 6045 | D18: 363.8434006 | E18: ='Authorized Rev Req'!G17 -> Local Transmission | F18: ='Authorized Rev Req'!F17 -> 363.8434006 | G18: 0 | H18: =0 -> 0 | I18: =0 -> 0 | J18: =0 -> 0 | K18: Existing | N18: 47% Res (LUAF, Other) | O18: 74167.8785 | P18: 0 | Q18: 0 | R18: 0 | S18: 0
A19: ='Authorized Rev Req'!A18 -> SCG PSEP - 2017 Forecast Application RevReq Capital Cost - Distribution | C19: ='Authorized Rev Req'!B18 -> D.20-02-045 AL 6071, AL 6045 | D19: 24959.79958 | E19: ='Authorized Rev Req'!G18 -> Distribution | F19: ='Authorized Rev Req'!F18 -> 24959.79958 | G19: 0 | H19: =0 -> 0 | I19: =0 -> 0 | J19: =0 -> 0 | K19: Existing | N19: ECPT | O19: 82775.78103 | P19: 0 | Q19: 0 | R19: 0 | S19: 0
A20: ='Authorized Rev Req'!A19 -> AMI Balancing Account (AMIBA) | C20: ='Authorized Rev Req'!B19 -> D.20-02-045 AL 6071, AL 6045 | D20: -323.9718593 | E20: ='Authorized Rev Req'!G19 -> EPAM | F20: ='Authorized Rev Req'!F19 -> -323.9718593 | G20: 0 | H20: =0 -> 0 | I20: =0 -> 0 | J20: =0 -> 0 | K20: Existing | N20: EPAM | O20: 215749.2959 | P20: 116304.0377 | Q20: 34359.90823 | R20: 39396.95928 | S20: 0
A21: ='Authorized Rev Req'!A20 -> Residential Uncollectible Balancing Account (RUBA) | C21: ='Authorized Rev Req'!B20 -> D.20-02-045 AL 6071, AL 6045 | D21: 44745.19835 | E21: ='Authorized Rev Req'!G20 -> ECPT | F21: ='Authorized Rev Req'!F20 -> 44745.19835 | G21: 0 | H21: =0 -> 0 | I21: =0 -> 0 | J21: =0 -> 0 | K21: Existing | N21: CFCA | O21: -12481.01707 | P21: 0 | Q21: 0 | R21: 0 | S21: 0
A22: ='Authorized Rev Req'!A21 -> Affiliate Transfer Fee Account (ATFA) | C22: ='Authorized Rev Req'!B21 -> D.20-02-045 AL 6071, AL 6045 | D22: -106.5216742 | E22: ='Authorized Rev Req'!G21 -> EPAM | F22: ='Authorized Rev Req'!F21 -> -106.5216742 | G22: 0 | H22: =0 -> 0 | I22: =0 -> 0 | J22: =0 -> 0 | K22: Existing | N22: Non-Residential | O22: 22741.07052 | P22: 0 | Q22: 0 | R22: 0 | S22: 0
A23: ='Authorized Rev Req'!A22 -> Biomethane Cost Incentive Pgm Balancing Acct (BCIPBA) | C23: ='Authorized Rev Req'!B22 -> D.20-02-045 AL 6071, AL 6045 | D23: 0 | E23: ='Authorized Rev Req'!G22 -> ECPT | F23: ='Authorized Rev Req'!F22 -> 0 | G23: 0 | H23: =0 -> 0 | I23: =0 -> 0 | J23: =0 -> 0 | K23: Existing | N23: Total | O23: 7898617.276 | P23: 6899156.894 | Q23: 6557822.501 | R23: 6563922.893 | S23: 6114353.596
A24: ='Authorized Rev Req'!A23 -> Core Fixed Cost Account - Non NGV (CFCA) | C24: ='Authorized Rev Req'!B23 -> D.20-02-045, AL 6071, AL 6045, AL 6088 | D24: -12481.01707 | E24: ='Authorized Rev Req'!G23 -> CFCA | F24: ='Authorized Rev Req'!F23 -> -12481.01707 | G24: 0 | H24: =0 -> 0 | I24: =0 -> 0 | J24: =0 -> 0 | K24: Existing | N24: CPUC Fee | O24: 0.003
A25: ='Authorized Rev Req'!A24 -> Core Fixed Cost Account - NGV (CFCA) | C25: ='Authorized Rev Req'!B24 -> D.20-02-045, AL 6071, AL 6045, AL 6088 | D25: -1401.302084 | E25: ='Authorized Rev Req'!G24 -> Non-Residential | F25: ='Authorized Rev Req'!F24 -> -1401.302084 | G25: 0 | H25: =0 -> 0 | I25: =0 -> 0 | J25: =0 -> 0 | K25: Existing | N25: Check | O25: 0 | P25: 0 | Q25: 0 | R25: 0 | S25: 0
A26: ='Authorized Rev Req'!A25 -> Core Fixed Cost Account - C&I Shortfall (CFCA) | C26: ='Authorized Rev Req'!B25 -> D.20-02-045, AL 6071, AL 6045, AL 6088 | D26: 0 | E26: ='Authorized Rev Req'!G25 -> Non-Residential | F26: ='Authorized Rev Req'!F25 -> 0 | G26: 0 | H26: =0 -> 0 | I26: =0 -> 0 | J26: =0 -> 0 | K26: Existing
A27: ='Authorized Rev Req'!A26 -> Economic Practicality Shortfall Memorandum Account (EPSMA) | C27: ='Authorized Rev Req'!B26 -> D.20-02-045 AL 6071, AL 6045 | D27: 434.2273838 | E27: ='Authorized Rev Req'!G26 -> Non-Residential | F27: ='Authorized Rev Req'!F26 -> 434.2273838 | G27: 0 | H27: =0 -> 0 | I27: =0 -> 0 | J27: =0 -> 0 | K27: Existing
A28: ='Authorized Rev Req'!A27 -> Enhanced Oil Recovery Account (EORA) | C28: ='Authorized Rev Req'!B27 -> D.20-02-045 AL 6071, AL 6045 | D28: -7124.256786 | E28: ='Authorized Rev Req'!G27 -> EPAM | F28: ='Authorized Rev Req'!F27 -> -7124.256786 | G28: 0 | H28: =0 -> 0 | I28: =0 -> 0 | J28: =0 -> 0 | K28: Existing
A29: ='Authorized Rev Req'!A28 -> Hazardous Substance Cost-Recovery Account (HSCRA) | C29: ='Authorized Rev Req'!B28 -> D.20-02-045 AL 6071, AL 6045 | D29: 441.0656654 | E29: ='Authorized Rev Req'!G28 -> ECPT | F29: ='Authorized Rev Req'!F28 -> 441.0656654 | G29: 0 | H29: =0 -> 0 | I29: =0 -> 0 | J29: =0 -> 0 | K29: Existing
A30: ='Authorized Rev Req'!A29 -> Intervenor Award Memorandum Account (IAMA) | C30: ='Authorized Rev Req'!B29 -> D.20-02-045 AL 6071, AL 6045 | D30: 832.9371787 | E30: ='Authorized Rev Req'!G29 -> ECPT | F30: ='Authorized Rev Req'!F29 -> 832.9371787 | G30: 0 | H30: =0 -> 0 | I30: =0 -> 0 | J30: =0 -> 0 | K30: Existing
A31: ='Authorized Rev Req'!A30 -> Master Meter Balancing Account (MMBA) | C31: ='Authorized Rev Req'!B30 -> D.20-02-045 AL 6071, AL 6045 | D31: 24824.50463 | E31: ='Authorized Rev Req'!G30 -> EPAM | F31: ='Authorized Rev Req'!F30 -> 24824.50463 | G31: 29872.87257 | H31: 34359.90823 | I31: 39396.95928 | J31: =0 -> 0 | K31: Existing
A32: ='Authorized Rev Req'!A31 -> Noncore Fixed Cost Account (NFCA) Margin | C32: ='Authorized Rev Req'!B31 -> D.20-02-045 AL 6071, AL 6045 | D32: 12427.60401 | E32: ='Authorized Rev Req'!G31 -> Non-Residential | F32: ='Authorized Rev Req'!F31 -> 12427.60401 | G32: =0 -> 0 | H32: =0 -> 0 | I32: =0 -> 0 | J32: =0 -> 0 | K32: Existing
A33: ='Authorized Rev Req'!A32 -> Noncore Fixed Cost Account (NFCA) Nonmargin | C33: ='Authorized Rev Req'!B32 -> D.20-02-045 AL 6071, AL 6045 | D33: 959.6319265 | E33: ='Authorized Rev Req'!G32 -> Non-Residential | F33: ='Authorized Rev Req'!F32 -> 959.6319265 | G33: =0 -> 0 | H33: =0 -> 0 | I33: =0 -> 0 | J33: =0 -> 0 | K33: Existing
A34: ='Authorized Rev Req'!A33 -> Integrated Transmission Balancing Account (ITBA) Margin | C34: ='Authorized Rev Req'!B33 -> D.20-02-045 AL 6071, AL 6045 | D34: 5083.885059 | E34: ='Authorized Rev Req'!G33 -> ECPT | F34: ='Authorized Rev Req'!F33 -> 5083.885059 | G34: =0 -> 0 | H34: =0 -> 0 | I34: =0 -> 0 | J34: =0 -> 0 | K34: Existing
A35: ='Authorized Rev Req'!A34 -> Compressor Station Fuel and Power Balancing Account (CFPBA) | C35: ='Authorized Rev Req'!B34 -> D.20-02-045 AL 6071, AL 6045 | D35: 3459.772548 | E35: ='Authorized Rev Req'!G34 -> ECPT | F35: ='Authorized Rev Req'!F34 -> 3459.772548 | G35: =0 -> 0 | H35: =0 -> 0 | I35: =0 -> 0 | J35: =0 -> 0 | K35: Existing
A36: ='Authorized Rev Req'!A35 -> Compression Services Balancing Account (CSBA) | C36: ='Authorized Rev Req'!B35 -> D.20-02-045 AL 6071, AL 6045 | D36: -73.63685293 | E36: ='Authorized Rev Req'!G35 -> Non-Residential | F36: ='Authorized Rev Req'!F35 -> -73.63685293 | G36: =0 -> 0 | H36: =0 -> 0 | I36: =0 -> 0 | J36: =0 -> 0 | K36: Existing
A37: ='Authorized Rev Req'!A36 -> Company-Use Fuel for Load Balancing Account (CUFLBA) | C37: ='Authorized Rev Req'!B36 -> D.20-02-045 AL 6071, AL 6045 | D37: 5918.687245 | E37: ='Authorized Rev Req'!G36 -> ECPT | F37: ='Authorized Rev Req'!F36 -> 5918.687245 | G37: =0 -> 0 | H37: =0 -> 0 | I37: =0 -> 0 | J37: =0 -> 0 | K37: Existing
A38: ='Authorized Rev Req'!A37 -> Noncore Storage Balancing Account (NSBA) | C38: ='Authorized Rev Req'!B37 -> D.20-02-045 AL 6071, AL 6045 | D38: 93.94677741 | E38: ='Authorized Rev Req'!G37 -> ECPT | F38: ='Authorized Rev Req'!F37 -> 93.94677741 | G38: =0 -> 0 | H38: =0 -> 0 | I38: =0 -> 0 | J38: =0 -> 0 | K38: Existing
A39: ='Authorized Rev Req'!A38 -> Pension Balancing Account (PBA) | C39: ='Authorized Rev Req'!B38 -> D.20-02-045 AL 6071, AL 6045 | D39: 9235.968926 | E39: ='Authorized Rev Req'!G38 -> EPAM | F39: ='Authorized Rev Req'!F38 -> 9235.968926 | G39: =0 -> 0 | H39: =0 -> 0 | I39: =0 -> 0 | J39: =0 -> 0 | K39: Existing
A40: ='Authorized Rev Req'!A39 -> PBOP Balancing Account (PBOPBA) | C40: ='Authorized Rev Req'!B39 -> D.20-02-045 AL 6071, AL 6045 | D40: -4765.790274 | E40: ='Authorized Rev Req'!G39 -> EPAM | F40: ='Authorized Rev Req'!F39 -> -4765.790274 | G40: =0 -> 0 | H40: =0 -> 0 | I40: =0 -> 0 | J40: =0 -> 0 | K40: Existing
A41: ='Authorized Rev Req'!A40 -> Safety Enhancement Capital Cost Balancing Account (SECCBA) - Local Transmission | C41: ='Authorized Rev Req'!B40 -> D.20-02-045 AL 6071, AL 6045 | D41: 24483.53553 | E41: ='Authorized Rev Req'!G40 -> Local Transmission | F41: ='Authorized Rev Req'!F40 -> 24483.53553 | G41: =0 -> 0 | H41: =0 -> 0 | I41: =0 -> 0 | J41: =0 -> 0 | K41: Existing
A42: ='Authorized Rev Req'!A41 -> Safety Enhancement Capital Cost Balancing Account (SECCBA) - Distribution | C42: ='Authorized Rev Req'!B41 -> D.20-02-045 AL 6071, AL 6045 | D42: 74787.02382 | E42: ='Authorized Rev Req'!G41 -> Distribution | F42: ='Authorized Rev Req'!F41 -> 74787.02382 | G42: =0 -> 0 | H42: =0 -> 0 | I42: =0 -> 0 | J42: =0 -> 0 | K42: Existing
A43: ='Authorized Rev Req'!A42 -> Safety Enhancement Expense Balancing Account (SEEBA) - Local Transmission | C43: ='Authorized Rev Req'!B42 -> D.20-02-045 AL 6071, AL 6045 | D43: -674.0780882 | E43: ='Authorized Rev Req'!G42 -> Local Transmission | F43: ='Authorized Rev Req'!F42 -> -674.0780882 | G43: =0 -> 0 | H43: =0 -> 0 | I43: =0 -> 0 | J43: =0 -> 0 | K43: Existing
A44: ='Authorized Rev Req'!A43 -> Safety Enhancement Expense Balancing Account (SEEBA) - Distribution | C44: ='Authorized Rev Req'!B43 -> D.20-02-045 AL 6071, AL 6045 | D44: 2206.086744 | E44: ='Authorized Rev Req'!G43 -> Distribution | F44: ='Authorized Rev Req'!F43 -> 2206.086744 | G44: =0 -> 0 | H44: =0 -> 0 | I44: =0 -> 0 | J44: =0 -> 0 | K44: Existing
A45: ='Authorized Rev Req'!A44 -> Research Royalty Memorandum Account (RRMA) | C45: ='Authorized Rev Req'!B44 -> D.20-02-045 AL 6071, AL 6045 | D45: -247.9508232 | E45: ='Authorized Rev Req'!G44 -> EPAM | F45: ='Authorized Rev Req'!F44 -> -247.9508232 | G45: =0 -> 0 | H45: =0 -> 0 | I45: =0 -> 0 | J45: =0 -> 0 | K45: Existing
A46: ='Authorized Rev Req'!A45 -> Self-Generation Program Memorandum Account (SGPMA) | C46: ='Authorized Rev Req'!B45 -> D.20-02-045 AL 6071, AL 6045 | D46: 16265.02543 | E46: ='Authorized Rev Req'!G45 -> SGIP | F46: ='Authorized Rev Req'!F45 -> 16265.02543 | G46: =0 -> 0 | H46: =0 -> 0 | I46: =0 -> 0 | J46: =0 -> 0 | K46: Existing
A47: ='Authorized Rev Req'!A46 -> System Operator Gas Account (SOGA) | C47: ='Authorized Rev Req'!B46 -> D.20-02-045 AL 6071, AL 6045 | D47: -54.79102466 | E47: ='Authorized Rev Req'!G46 -> ECPT | F47: ='Authorized Rev Req'!F46 -> -54.79102466 | G47: =0 -> 0 | H47: =0 -> 0 | I47: =0 -> 0 | J47: =0 -> 0 | K47: Existing
A48: ='Authorized Rev Req'!A47 -> Rewards & Penalties Balancing Account (RPBA) | C48: ='Authorized Rev Req'!B47 -> D.20-02-045 AL 6071, AL 6045 | D48: -288.8720611 | E48: ='Authorized Rev Req'!G47 -> EPAM | F48: ='Authorized Rev Req'!F47 -> -288.8720611 | G48: =0 -> 0 | H48: =0 -> 0 | I48: =0 -> 0 | J48: =0 -> 0 | K48: Existing
A49: ='Authorized Rev Req'!A48 -> Liability Insurance Premium Balancing Account (LIPBA) | C49: ='Authorized Rev Req'!B48 -> D.20-02-045 AL 6071, AL 6045 | D49: 23349.85594 | E49: ='Authorized Rev Req'!G48 -> EPAM | F49: ='Authorized Rev Req'!F48 -> 23349.85594 | G49: =0 -> 0 | H49: =0 -> 0 | I49: =0 -> 0 | J49: =0 -> 0 | K49: Existing
A50: ='Authorized Rev Req'!A49 -> NonCore Backbone Transmission | C50: ='Authorized Rev Req'!B49 -> D.20-02-045 AL 6071, AL 6045 | D50: 307036.3771 | E50: ='Authorized Rev Req'!G49 -> Backbone Transmission | F50: ='Authorized Rev Req'!F49 -> 307036.3771 | G50: 209446 | H50: =0 -> 0 | I50: =0 -> 0 | J50: =0 -> 0 | K50: Existing
A51: ='Authorized Rev Req'!A50 -> Storage Integrity Management Program Balancing Account (SIMPBA) Balance | C51: ='Authorized Rev Req'!B50 -> D.22-07-016, AL 6023 | D51: 35607.36669 | E51: ='Authorized Rev Req'!G50 -> EPAM | F51: ='Authorized Rev Req'!F50 -> 35607.36669 | G51: 0 | H51: =0 -> 0 | I51: =0 -> 0 | J51: =0 -> 0 | K51: Existing
A52: ='Authorized Rev Req'!A51 -> On-Bill Financing Balancing Account (OBFBA) | C52: ='Authorized Rev Req'!B51 -> AL 5853-A | D52: 4574.363334 | E52: ='Authorized Rev Req'!G51 -> EPAM | F52: ='Authorized Rev Req'!F51 -> 4574.363334 | G52: 0 | H52: =0 -> 0 | I52: =0 -> 0 | J52: =0 -> 0 | K52: Existing
A53: ='Authorized Rev Req'!A52 -> System Reliability Memorandum Account (SRMA) | C53: ='Authorized Rev Req'!B52 -> AL 6045 | D53: 15184.32229 | E53: ='Authorized Rev Req'!G52 -> ECPT | F53: ='Authorized Rev Req'!F52 -> 15184.32229 | G53: 0 | H53: =0 -> 0 | I53: =0 -> 0 | J53: =0 -> 0 | K53: Existing
A54: ='Authorized Rev Req'!A53 -> Distributed Energy Resources Svcs Bal Account (DERSBA) | C54: ='Authorized Rev Req'!B53 -> AL 6045 | D54: -61.47842668 | E54: ='Authorized Rev Req'!G53 -> EPAM | F54: ='Authorized Rev Req'!F53 -> -61.47842668 | G54: 0 | H54: =0 -> 0 | I54: =0 -> 0 | J54: =0 -> 0 | K54: Existing
A59: ='Authorized Rev Req'!A58 -> Public Policy Proceedings
A60: ='Authorized Rev Req'!A59 -> AB32 Fees (subtracted from base margin and allocated here) | C60: ='Authorized Rev Req'!B59 -> D.19-09-051 | D60: =F60 -> 5106.20142 | E60: ='Authorized Rev Req'!G59 -> ECPT adjusted | F60: ='Authorized Rev Req'!F59 -> 5106.20142 | G60: =0 -> 0 | H60: =0 -> 0 | I60: =H60 -> 0 | J60: =I60 -> 0 | K60: Existing
A61: ='Authorized Rev Req'!A60 -> Green House Gas Balancing Account (GHGBA) - Company Gas Compressor Revenue Requirement | C61: ='Authorized Rev Req'!B60 -> D.20-02-045, AL 6071, AL 6045 | D61: 2388.575096 | E61: ='Authorized Rev Req'!G60 -> ECPT | F61: ='Authorized Rev Req'!F60 -> 2388.575096 | G61: =0 -> 0 | H61: =0 -> 0 | I61: =H61 -> 0 | J61: =I61 -> 0 | K61: Existing
A62: ='Authorized Rev Req'!A61 -> Green House Gas Balancing Account (GHGBA) - End User Revenue Requirement | C62: ='Authorized Rev Req'!B61 -> D.20-02-045, AL 6071, AL 6045 | D62: 451660.1517 | E62: ='Authorized Rev Req'!G61 -> GHG End User | F62: ='Authorized Rev Req'!F61 -> 451660.1517 | G62: =0 -> 0 | H62: =0 -> 0 | I62: 0 | J62: 0 | K62: Existing
A63: ='Authorized Rev Req'!A62 -> Green House Gas Balancing Account (GHGBA) - LUAF Revenue Requirement | C63: ='Authorized Rev Req'!B62 -> D.20-02-045, AL 6071, AL 6045 | D63: 11338.59513 | E63: ='Authorized Rev Req'!G62 -> 47% Res (LUAF, Other) | F63: ='Authorized Rev Req'!F62 -> 11338.59513 | G63: =0 -> 0 | H63: =0 -> 0 | I63: 0 | J63: 0 | K63: Existing
A64: ='Authorized Rev Req'!A63 -> Green House Gas Balancing Account (GHGBA) - Company Gas Compressor | C64: ='Authorized Rev Req'!B63 -> D.20-02-045, AL 6071, AL 6045 | D64: -783.1516359 | E64: ='Authorized Rev Req'!G63 -> ECPT | F64: ='Authorized Rev Req'!F63 -> -783.1516359 | G64: =0 -> 0 | H64: =0 -> 0 | I64: 0 | J64: 0 | K64: Existing
A65: ='Authorized Rev Req'!A64 -> Green House Gas Balancing Account (GHGBA) - End User | C65: ='Authorized Rev Req'!B64 -> D.20-02-045, AL 6071, AL 6045 | D65: -22703.37309 | E65: ='Authorized Rev Req'!G64 -> GHG End User | F65: ='Authorized Rev Req'!F64 -> -22703.37309 | G65: =0 -> 0 | H65: =0 -> 0 | I65: 0 | J65: 0 | K65: Existing
A66: ='Authorized Rev Req'!A65 -> Green House Gas Balancing Account (GHGBA) - LUAF | C66: ='Authorized Rev Req'!B65 -> D.20-02-045, AL 6071, AL 6045 | D66: 3057.496701 | E66: ='Authorized Rev Req'!G65 -> 47% Res (LUAF, Other) | F66: ='Authorized Rev Req'!F65 -> 3057.496701 | G66: =0 -> 0 | H66: =0 -> 0 | I66: 0 | J66: 0 | K66: Existing
A67: ='Authorized Rev Req'!A66 -> New Envirnomental Regulatory Balancing Account (NERBA) - Admin Fees Subaccount | C67: ='Authorized Rev Req'!B66 -> D.20-02-045, AL 6071, AL 6045 | D67: 5564.392269 | E67: ='Authorized Rev Req'!G66 -> ECPT adjusted | F67: ='Authorized Rev Req'!F66 -> 5564.392269 | G67: =0 -> 0 | H67: =0 -> 0 | I67: 0 | J67: 0 | K67: Existing
A68: ='Authorized Rev Req'!A67 -> New Environmental Regulatory Balancing Account (NERBA) - Leak Detection & Repair (LDAR) sub-account | C68: ='Authorized Rev Req'!B67 -> D.20-02-045, AL 6071, AL 6045 | D68: 6090.186376 | E68: ='Authorized Rev Req'!G67 -> EPAM | F68: ='Authorized Rev Req'!F67 -> 6090.186376 | G68: =0 -> 0 | H68: =0 -> 0 | I68: 0 | J68: 0 | K68: Existing
A69: ='Authorized Rev Req'!A68 -> New Envirnomental Regulatory Balancing Account (NERBA) -Natural Gas Leak Abatement Program | C69: ='Authorized Rev Req'!B68 -> D.20-02-045, AL 6071, AL 6045 | D69: 0 | E69: ='Authorized Rev Req'!G68 -> EPAM | F69: ='Authorized Rev Req'!F68 -> 0 | G69: =0 -> 0 | H69: =0 -> 0 | I69: 0 | J69: 0 | K69: Existing
A70: ='Authorized Rev Req'!A69 -> TLS Adjustment | C70: ='Authorized Rev Req'!B69 -> D.20-02-045, AL 6071, AL 6045 | D70: 10394.54613 | E70: ='Authorized Rev Req'!G69 -> Non-Residential | F70: ='Authorized Rev Req'!F69 -> 10394.54613 | G70: =0 -> 0 | H70: =0 -> 0 | I70: 0 | J70: 0 | K70: Existing
A71: ='Authorized Rev Req'!A70 -> Natural Gas Leak Abatement Program Revenue Requirement | C71: ='Authorized Rev Req'!B70 -> AL 5915G, AL 6071 | D71: 107531.4643 | E71: ='Authorized Rev Req'!G70 -> EPAM | F71: ='Authorized Rev Req'!F70 -> 107531.4643 | G71: 86431.16512 | H71: =0 -> 0 | I71: =H71 -> 0 | J71: =I71 -> 0 | K71: Existing
A72: ='Authorized Rev Req'!A71 -> Biogas Conditioning/Upgrading Svcs Bal Acct (BCSBA) | C72: ='Authorized Rev Req'!B71 -> D.20-02-045, AL 6071, AL 6045 | D72: 0 | E72: ='Authorized Rev Req'!G71 -> EPAM | F72: ='Authorized Rev Req'!F71 -> 0 | G72: =0 -> 0 | H72: =0 -> 0 | I72: 0 | J72: 0 | K72: Existing
A73: ='Authorized Rev Req'!A72 -> Diary Biomethane Project Balancing Account (DBPBA) | C73: ='Authorized Rev Req'!B72 -> D.20-02-045, AL 6071, AL 6045 | D73: 34573.34405 | E73: ='Authorized Rev Req'!G72 -> EPAM | F73: ='Authorized Rev Req'!F72 -> 34573.34405 | G73: =0 -> 0 | H73: =0 -> 0 | I73: 0 | J73: 0 | K73: Existing
A74: ='Authorized Rev Req'!A73 -> Diary Biomethane Project Memorandum Account (DBPMA) | C74: ='Authorized Rev Req'!B73 -> D.20-02-045, AL 6071, AL 6045 | D74: 8114.656258 | E74: ='Authorized Rev Req'!G73 -> EPAM | F74: ='Authorized Rev Req'!F73 -> 8114.656258 | G74: =0 -> 0 | H74: =0 -> 0 | I74: 0 | J74: 0 | K74: New
A75: ='Authorized Rev Req'!A74 -> California Solar Iniative Thermal Memorandum Account (CSITPMA) | C75: ='Authorized Rev Req'!B74 -> D.20-02-045, AL 6071, AL 6045 | D75: 1113.860455 | E75: ='Authorized Rev Req'!G74 -> ECPT adjusted | F75: ='Authorized Rev Req'!F74 -> 1113.860455 | G75: =0 -> 0 | H75: =0 -> 0 | I75: 0 | J75: 0 | K75: Existing
A79: PPPS Programs
A80: ='Authorized Rev Req'!A83 -> California Alternate Rates for Energy (CARE) | C80: ='Authorized Rev Req'!B83 -> D.21-06-015, AL 6052 | D80: =F80 -> 199514.8915 | E80: ='Authorized Rev Req'!G83 -> Public Purpose Programs | F80: ='Authorized Rev Req'!F83 -> 199514.8915 | G80: 152497.4174 | H80: 154039.1134 | I80: 155411.2686 | J80: =0 -> 0 | K80: Existing
A81: ='Authorized Rev Req'!A84 -> Energy Efficiency | C81: ='Authorized Rev Req'!B84 -> AL 6052 | D81: 166906.526 | E81: ='Authorized Rev Req'!G84 -> Public Purpose Programs | F81: ='Authorized Rev Req'!F84 -> 166906.526 | G81: 132220 | H81: =G81 -> 132220 | I81: =H81 -> 132220 | J81: =0 -> 0 | K81: Existing
A82: ='Authorized Rev Req'!A85 -> RD&D | C82: ='Authorized Rev Req'!B85 -> AL 6052 | D82: 12264.872 | E82: ='Authorized Rev Req'!G85 -> Public Purpose Programs | F82: ='Authorized Rev Req'!F85 -> 12264.872 | G82: =0 -> 0 | H82: =0 -> 0 | I82: =0 -> 0 | J82: =0 -> 0 | K82: Existing
A83: ='Authorized Rev Req'!A86 -> Bureau Of Equalization BOE | C83: ='Authorized Rev Req'!B86 -> AL 6052 | D83: 520.254 | E83: ='Authorized Rev Req'!G86 -> Public Purpose Programs | F83: ='Authorized Rev Req'!F86 -> 520.254 | G83: =0 -> 0 | H83: =0 -> 0 | I83: =0 -> 0 | J83: =0 -> 0 | K83: Existing
A84: ='Authorized Rev Req'!A87 -> Energy Savings Assistance | C84: ='Authorized Rev Req'!B87 -> D.21-06-015, AL 6052 | D84: 80174.20485 | E84: ='Authorized Rev Req'!G87 -> Public Purpose Programs | F84: ='Authorized Rev Req'!F87 -> 80174.20485 | G84: 122814.843 | H84: 122849.884 | I84: 122541.07 | J84: =0 -> 0 | K84: Existing
A85: ='Authorized Rev Req'!A88 -> SJVDGPMA | D85: 806.165 | E85: ='Authorized Rev Req'!G88 -> Public Purpose Programs | F85: ='Authorized Rev Req'!F88 -> 806.165 | G85: =0 -> 0 | H85: =0 -> 0 | I85: =0 -> 0 | J85: =0 -> 0 | K85: New
A88: ='Authorized Rev Req'!A97 -> EOR | C88: ='Authorized Rev Req'!B97 -> D.20-02-045, AL 6045 | D88: =F88 -> -25233.57266 | E88: ='Authorized Rev Req'!G97 -> EPAM | F88: ='Authorized Rev Req'!F97 -> -25233.57266 | G88: =0 -> 0 | H88: =0 -> 0 | I88: =H88 -> 0 | J88: =I88 -> 0 | K88: Existing
A91: Procurement | C91: ='Authorized Rev Req'!B100 -> D.98-07-068 | D91: =F91 -> 3301020.314 | E91: ='Authorized Rev Req'!G100 -> Core Procurement | F91: ='Authorized Rev Req'!F100 -> 3301020.314 | G91: =F91 -> 3301020.314 | H91: =G91 -> 3301020.314 | I91: =H91 -> 3301020.314 | J91: =I91 -> 3301020.314 | K91: Existing
A95: Total Approved, Implemented Since Jan 1 or To Be Implemented | D95: =SUM(F10:F94) -> 7898617.276 | F95: =SUM(F10:F94) -> 7898617.276 | G95: =SUM(G10:G94) -> 6899156.894 | H95: =SUM(H10:H94) -> 6557822.501 | I95: =SUM(I10:I94) -> 6563922.893 | J95: =SUM(J10:J94) -> 6114353.596
A97: CPUC Fee | E97: CPUC Fee | F97: 0.003
A100: Pending Application(s) Not Yet Approved
A101: Filing Description | B101: Proceeding | C101: Basis of Revenue Requirement Forecast: Application, Amended Application , Amended Testimony, Proposed Settlement Agreement, Proposed Decision | D101: Proposed Revenue Requirement with FF&U ($000) | E101: Proposed Revenue Recovery Mechanism | F101: Incremental Revenue Requirement with FF&U ($000) - Breakout by Year | K101: Existing or New Item (if existing, use delta from prior for rate impact)
A102: Safety Affordability Reliability Proceedings | F102: 2023 | G102: 2024 | H102: 2025 | I102: 2026 | J102: 2027 | L102: Include in Impact
A103: 2024 GRC Application | B103: A.22-05-015 | C103: Application | D103: =SUM(F103:J103) -> 5344496.585 | E103: Allocated Base Margin | G103: 1504663.996 | H103: 1789651.816 | I103: 2050180.773 | K103: Existing | L103: =IFERROR(VLOOKUP(A103,#REF!,3,FALSE),"-") -> - | N103: Authorized + Pending
A104: Pipeline Safety Enhancement Plan (PSEP) GRC - Local Transmission | B104: A.22-05-015 | C104: Application | D104: -5487.02332 | E104: Local Transmission | G104: -5487.02332 | K104: Existing | L104: =IFERROR(VLOOKUP(A104,#REF!,3,FALSE),"-") -> - | O104: 2023 | P104: 2024 | Q104: 2025 | R104: 2026 | S104: 2027
A105: Pipeline Safety Enhancement Plan (PSEP) GRC -Distribution | B105: A.22-05-015 | C105: Application | D105: 63454.58 | E105: Distribution | G105: 63454.58 | K105: Existing | L105: =IFERROR(VLOOKUP(A105,#REF!,3,FALSE),"-") -> - | N105: Core Procurement | O105: 3301020.314 | P105: 3301020.314 | Q105: 3301020.314 | R105: 3301020.314 | S105: 3301020.314
A106: NonCore Backbone Transmission | B106: A.22-05-015 | C106: Application | D106: 22240.27738 | E106: Backbone Transmission | G106: 22240.27738 | K106: Existing | L106: =IFERROR(VLOOKUP(A106,#REF!,3,FALSE),"-") -> - | N106: Allocated Base Margin | O106: 2813333.282 | P106: 4317997.278 | Q106: 4602985.098 | R106: 4863514.055 | S106: 2813333.282
A107: TIMPBA | B107: AL 6060 | C107: Advice Letter | D107: 62283.85972 | E107: Local Transmission | G107: =61269*1.016564 -> 62283.85972 | K107: New | L107: =IFERROR(VLOOKUP(A107,#REF!,3,FALSE),"-") -> - | N107: Distribution | O107: 131935.6701 | P107: 93770.58 | Q107: 0 | R107: 0 | S107: 0
A108: TIMPBA | B108: AL 6060 | C108: Advice Letter | D108: 172434.6685 | E108: Backbone Transmission | G108: =169625*1.016564 -> 172434.6685 | K108: New | L108: =IFERROR(VLOOKUP(A108,#REF!,3,FALSE),"-") -> - | N108: ECPT adjusted | O108: 11784.45414 | P108: 0 | Q108: 0 | R108: 0 | S108: 0
A109: Hydrogen Blending | B109: A.22-09-006 | C109: Application | D109: 14979.07897 | E109: ECPT | F109: 3232.239601 | G109: 8301.048186 | H109: 971.1214949 | I109: 2474.669685 | K109: New | L109: =IFERROR(VLOOKUP(A109,#REF!,3,FALSE),"-") -> - | N109: Local Transmission | O109: 45145.45244 | P109: 78001.8364 | Q109: 0 | R109: 0 | S109: 0
D110: 0 | L110: =IFERROR(VLOOKUP(A110,#REF!,3,FALSE),"-") -> - | N110: SGIP | O110: 16265.02543 | P110: 0 | Q110: 0 | R110: 0 | S110: 0
A111: Public Policy Proceedings | D111: 0 | L111: =IFERROR(VLOOKUP(A111,#REF!,3,FALSE),"-") -> - | N111: GHG End User | O111: 428956.7786 | P111: 0 | Q111: 0 | R111: 0 | S111: 0
A112: Natural Gas Leak Abatement | B112: AL 5950 | C112: Advice Letter | D112: 18069.45287 | E112: EPAM | G112: =102797.874*1.016564-G71 -> 18069.45287 | K112: Existing | L112: =IFERROR(VLOOKUP(A112,#REF!,3,FALSE),"-") -> - | N112: Public Purpose Programs | O112: 461792.8134 | P112: 432702.4364 | Q112: 434377.4847 | R112: 431043.095 | S112: 0
A113: Cost Allocation Proceeding | B113: A. 22-09-015 | C113: Application | D113: 0 | E113: EPAM | F113: 0 | G113: 0 | H113: 0 | I113: 0 | K113: Existing | L113: =IFERROR(VLOOKUP(A113,#REF!,3,FALSE),"-") -> - | N113: Backbone Transmission | O113: 307036.3771 | P113: 404120.9459 | Q113: 0 | R113: 0 | S113: 0
D114: 0 | K114: Existing | L114: =IFERROR(VLOOKUP(A114,#REF!,3,FALSE),"-") -> - | N114: 47% Res (LUAF, Other) | O114: 74167.8785 | P114: 0 | Q114: 0 | R114: 0 | S114: 0
A115: Energy Efficiency | B115: A.22-03-008 | C115: Application | D115: 60415.31974 | E115: Public Purpose Programs | G115: 19467.17603 | H115: 20077.38727 | I115: 20870.75644 | K115: Existing | L115: =IFERROR(VLOOKUP(A115,#REF!,3,FALSE),"-") -> - | N115: ECPT | O115: 86008.02063 | P115: 8301.048186 | Q115: 971.1214949 | R115: 2474.669685 | S115: 0
A116: Demand Response | B116: A.23.01-004 | C116: Application | D116: 12500 | E116: Public Purpose Programs | F116: 1605.9 | G116: 5703 | H116: 5191.1 | K116: New | L116: =IFERROR(VLOOKUP(A116,#REF!,3,FALSE),"-") -> - | N116: EPAM | O116: 215749.2959 | P116: 134373.4906 | Q116: 34359.90823 | R116: 39396.95928 | S116: 0
D117: 0 | L117: =IFERROR(VLOOKUP(A117,#REF!,3,FALSE),"-") -> - | N117: CFCA | O117: -12481.01707 | P117: 0 | Q117: 0 | R117: 0 | S117: 0
D118: 0 | L118: =IFERROR(VLOOKUP(A118,#REF!,3,FALSE),"-") -> - | N118: Non-Residential | O118: 22741.07052 | P118: 0 | Q118: 0 | R118: 0 | S118: 0
L119: =IFERROR(VLOOKUP(A119,#REF!,3,FALSE),"-") -> -
L120: =IFERROR(VLOOKUP(A120,#REF!,3,FALSE),"-") -> -
L121: =IFERROR(VLOOKUP(A121,#REF!,3,FALSE),"-") -> - | N121: Total | O121: 7903455.415 | P121: 8770287.929 | Q121: 8373713.926 | R121: 8637449.093 | S121: 6114353.596
L122: =IFERROR(VLOOKUP(A122,#REF!,3,FALSE),"-") -> - | N122: Incremental Revenues | O122: 4838.139601 | P122: 1871131.035 | Q122: 1815891.425 | R122: 2073526.199 | S122: 0
L123: =IFERROR(VLOOKUP(A123,#REF!,3,FALSE),"-") -> - | N123: CPUC Fee | O123: 0.003
L124: =IFERROR(VLOOKUP(A124,#REF!,3,FALSE),"-") -> - | N124: Check Figure | O124: 0 | P124: -3.026798368e-09 | Q124: 2.256128937e-07 | R124: 1.527369022e-07 | S124: 0
L125: =IFERROR(VLOOKUP(A125,#REF!,3,FALSE),"-") -> -
L126: =IFERROR(VLOOKUP(A126,#REF!,3,FALSE),"-") -> -
L127: =IFERROR(VLOOKUP(A127,#REF!,3,FALSE),"-") -> -
L128: =IFERROR(VLOOKUP(A128,#REF!,3,FALSE),"-") -> -
L129: =IFERROR(VLOOKUP(A129,#REF!,3,FALSE),"-") -> -
L130: =IFERROR(VLOOKUP(A130,#REF!,3,FALSE),"-") -> -
D131: 0 | L131: =IFERROR(VLOOKUP(A131,#REF!,3,FALSE),"-") -> -
D132: 0 | L132: =IFERROR(VLOOKUP(A132,#REF!,3,FALSE),"-") -> -
A133: Total Pending, Filed but not Approved | D133: =SUM(D103:D131) -> 5765386.799 | F133: =SUM(F103:F132) -> 4838.139601 | G133: =SUM(G103:G132) -> 1871131.035 | H133: =SUM(H103:H132) -> 1815891.425 | I133: =SUM(I103:I132) -> 2073526.199 | J133: 0
A135: Applications Projected to be Filed, Next 12 Months
A136: Filing Description | B136: Estimated Filing Date | C136: Filing Basis | D136: Proposed Revenue Requirement ($000) | E136: Proposed Revenue Recovery Mechanism | F136: Projected Authorized Revenue Requirement ($000) - Breakout by Year | K136: Existing or New Item (if existing, use delta from prior for rate impact)
A137: Safety Affordability Reliability Proceedings
A142: Public Policy Proceedings
